Cogmind - Beta 16.1 @@@ ROGUE MODE // 2026.03.04 @ 19:51:22 Player: Doglevel Result: Destroyed by G-47 Trooper with Particle Gun Performance ------------- Evolutions (3) 1500 Regions Visited (5) 1000 Robots Destroyed (43) 215 Value Destroyed (1150) 1150 Prototype IDs (0) 0 Alien Tech Used (0) 0 Bonus (156) 156 TOTAL SCORE: 4021 Bonus ------- Follower Combat Kills 156 Cogmind --------- Core Integrity 0/700 Matter 271/300 Energy 31/100 System Corruption 6% Temperature Cool (18) Movement Core (200) Ox3 Location -7/Storage Parts ------- > --- POWER (3) -------- (None) > --- PROPULSION (3) --- (None) > --- UTILITY (4) ------ Improved Heat Sink Medium Storage Unit > --- WEAPON (3) ------- (None) > --- INVENTORY (10) --- Aluminum Leg Flight Unit Flight Unit Heat Sink Heat Sink Small Storage Unit Peak State ------------ > --- POWER ------------ Ion Engine Light Ion Engine Improved Ion Engine > --- PROPULSION ------- Aluminum Leg Aluminum Leg Carbon-fiber Leg > --- UTILITY ---------- Improved Heat Sink Medium Storage Unit Medium Battery ECM Suite > --- WEAPON ----------- Shock Rifle Field Laser Improved Grenade Launcher > --- INVENTORY -------- Ion Engine Aluminum Leg Flight Unit Flight Unit Heat Sink Heat Sink Cooling System Small Storage Unit Particle Gun Improved Light Cannon [Rating: 25] Favorites ----------- Power Ion Engine Engine Ion Engine Propulsion Aluminum Leg Treads Light Treads Leg Aluminum Leg Utility Medium Storage Unit Device Heat Sink Storage Medium Storage Unit Weapon Light Assault Rifle Energy Gun Field Laser Ballistic Gun Light Assault Rifle Ballistic Cannon Improved Light Cannon Launcher Improved Grenade Launcher Build | -11 -10 -9 -8 -7 -7 ------- Run | Yrd Mat Mat Mat Fac Sto Slots Evolved 6 | . . 2 2 2 . Power 2 | . . 1 . 1 . Propulsion 1 | . . . 1 . . Utility 2 | . . 1 1 . . Weapon 1 | . . . . 1 . Parts Attached 51 | 7 6 20 4 3 11 Power 12 | 1 1 7 . 1 2 Engine 12 | 1 1 7 . 1 2 Core . | . . . . . . Reactor . | . . . . . . Propulsion 14 | 3 1 6 1 1 2 Treads 7 | 2 1 4 . . . Leg 7 | 1 . 2 1 1 2 Wheel . | . . . . . . Hover . | . . . . . . Flight . | . . . . . . Utility 11 | 1 2 3 2 . 3 Device 8 | . 1 3 1 . 3 Storage 3 | 1 1 . 1 . . Processor . | . . . . . . Hackware . | . . . . . . Protection . | . . . . . . Artifact . | . . . . . . Weapon 14 | 2 2 4 1 1 4 Energy Gun 6 | 1 . 1 1 1 2 Energy Cannon . | . . . . . . Ballistic Gun 5 | 1 2 2 . . . Ballistic Cannon 2 | . . 1 . . 1 Launcher 1 | . . . . . 1 Special Weapon . | . . . . . . Impact Weapon . | . . . . . . Slashing Weapon . | . . . . . . Piercing Weapon . | . . . . . . Special Melee Weapon . | . . . . . . Unidentified Prototypes . | . . . . . . Parts Lost 23 | . . 5 . . 18 Power 7 | . . 3 . . 4 Propulsion 5 | . . 1 . . 4 Utility 5 | . . 1 . . 4 Weapon 6 | . . . . . 6 Highest Loss Streak 18 | . . 4 . . 18 To Critical Strikes . | . . . . . . Average Backups 8 | 3 6 9 9 8 9 Power 1 | . 1 1 1 1 . Propulsion 3 | 2 4 4 3 3 3 Utility 2 | . . 2 2 3 3 Weapon 1 | . . . 1 1 1 Tool/Special . | . . . . . . Unused Backups 4 | . . . 2 . 2 Power . | . . . . . . Propulsion 4 | . . . 2 . 2 Utility . | . . . . . . Weapon . | . . . . . . Tool/Special . | . . . . . . Average Slot Usage (%) 94 | . 88 96 97 99 95 Engine 19 | . 13 20 18 23 21 Treads 11 | . 28 14 . . . Leg 12 | . . 6 27 23 22 Device 14 | . 4 20 16 15 14 Storage 13 | . 14 11 17 15 14 Energy Gun 9 | . 13 2 5 14 14 Ballistic Gun 10 | . 14 18 3 . . Ballistic Cannon 2 | . . 1 9 7 3 Peak Build Rating 25 | 6 7 14 15 22 25 Average Rating 13 | 4 6 11 14 21 22 On Entrance 10 | . 6 7 10 15 22 Avg Prop Armor Cover (%) 12 | 12 12 . . . . Naked Turns . | . . . . . . Heaviest Build 44 | 12 18 30 30 40 44 Greatest Support 43 | 20 40 43 30 35 35 Greatest Overweight (x) 5 | 3 . 1 . 1 5 Average Overweight (x) . | . . . . 1 1 Largest Inventory Capacity 10 | 8 10 10 10 10 10 Average Capacity 9 | 7 8 10 10 10 10 Most Carried 10 | 5 9 10 10 9 10 Average Carried 8 | 3 6 9 9 8 9 Final Capacity 10 | 8 10 10 10 10 10 Final Carried 10 | 5 8 10 10 8 6 Class Distribution -------------------- 39% | Mutant 29% | Scavenger-Mutant 23% | Gunner 6% | Commander-Gunner Dominant Class ---------------- Mutant | -10/Materials Scavenger-Mutant | -9/Materials Mutant | -8/Materials Gunner | -7/Factory Gunner | -7/Storage Resources | -11 -10 -9 -8 -7 -7 ----------- Run | Yrd Mat Mat Mat Fac Sto Matter Collected 985 | 221 105 373 . . 286 Remotely . | . . . . . . Salvage Created 1531 | . 98 604 . . 829 Parts 85 | . 9 43 . . 33 Haulers Intercepted 1 | . . . . . 1 Recyclers Shooed 1 | . . . . . 1 Parts Field Recycled . | . . . . . . Retrieved Matter . | . . . . . . Parts Self-Destructed . | . . . . . . Prevented . | . . . . . . Parts Restored . | . . . . . . Kills | -11 -10 -9 -8 -7 -7 ------- Run | Yrd Mat Mat Mat Fac Sto Combat Hostiles Destroyed 31 | . 6 14 . . 11 Guns 25 | . 6 14 . . 5 Cannons 3 | . . . . . 3 AOE 3 | . . . . . 3 Classes Destroyed 11 | . 1 5 . . 5 Worker 2 | . . 1 . . 1 Builder 2 | . . . . . 2 Tunneler 1 | . . 1 . . . Hauler 1 | . . . . . 1 Recycler 5 | . . . . . 5 Watcher 1 | . . 1 . . . Swarmer 10 | . 6 4 . . . Grunt 13 | . . 5 . . 8 Brawler 1 | . . . . . 1 Sentry 6 | . . 5 . . 1 Programmer 1 | . . . . . 1 Best Kill Streak 7 | . 3 7 . . 5 Combat Bots Only 5 | . 3 5 . . 3 Max Kills in Single Turn 2 | . 2 2 . . 2 Gunslinging 1 | . 1 1 . . . Exploded 1 | . . . . . 1 Melee . | . . . . . . Uniques/NPCs Destroyed . | . . . . . . Combat | -11 -10 -9 -8 -7 -7 -------- Run | Yrd Mat Mat Mat Fac Sto Hostile Shots Fired 487 | . 57 124 13 . 293 Missed 162 | . 18 33 6 . 105 Hits 325 | . 39 91 7 . 188 Projectile 325 | . 39 91 7 . 188 Critical Strikes 7 | . 1 1 1 . 4 Part Disruptions 1 | . . . . . 1 Damage Taken 3857 | . 340 1197 66 . 2254 Core 994 | . 62 221 . . 711 Absorbed by Shields . | . . . . . . Core Remaining (%) 79 | 100 75 44 100 . . Volleys Fired 104 | . 16 55 1 . 32 Largest 3 | . 2 2 2 . 3 Hottest 155 | . 60 79 96 . 155 Shots Fired 225 | . 32 110 2 . 81 Gun 199 | . 32 110 1 . 56 Cannon 21 | . . . 1 . 20 Launcher 5 | . . . . . 5 Special . | . . . . . . Kinetic 129 | . 16 92 1 . 20 Thermal 65 | . 16 18 1 . 30 Explosive 5 | . . . . . 5 Electromagnetic 26 | . . . . . 26 Robot Hit Streak 14 | . 4 13 14 . 12 Robot Miss Streak 6 | . 6 4 1 . 3 Penetration Max 1 | . . . . . 1 Secondary Targets 5 | . 2 3 . . . Max Gunslinging Chain 1 | . 1 1 . . . Shots Hit Robots 148 | . 18 77 1 . 52 Core Hits 71 | . 9 27 1 . 34 Critical Kills 1 | . . 1 . . . Critical Parts Destroyed 1 | . . 1 . . . Critical Strikes 6 | . . 3 . . 3 Burn 2 | . . 1 . . 1 Destroy 2 | . . 2 . . . Blast 2 | . . . . . 2 Melee Attacks . | . . . . . . Impact . | . . . . . . Slashing . | . . . . . . Piercing . | . . . . . . Sneak Attacks . | . . . . . . Combat Hostiles . | . . . . . . Follow-up Attacks . | . . . . . . Damage Inflicted 3065 | . 160 896 18 . 1991 Guns 1739 | . 160 896 18 . 665 Cannons 430 | . . . . . 430 Explosions 896 | . . . . . 896 Melee . | . . . . . . Ramming . | . . . . . . Kinetic 1213 | . 77 706 . . 430 Thermal 985 | . 83 190 18 . 694 Explosive 560 | . . . . . 560 Electromagnetic 307 | . . . . . 307 Impact . | . . . . . . Slashing . | . . . . . . Piercing . | . . . . . . Highest Corruption 6 | . . . . . 6 Average Corruption 3 | . . . . . 3 Corruption Purged . | . . . . . . Corruption Blocked . | . . . . . . Effects 1 | . . . . . 1 Heat Flow Errors 1 | . . . . . 1 Overload Shots . | . . . . . . Overflow Damage 26 | . . . . . 26 Projectiles 26 | . . . . . 26 Explosions . | . . . . . . Melee . | . . . . . . Knockbacks 5 | . . . . . 5 Impact . | . . . . . . Kinetic 5 | . . . . . 5 Secondary . | . . . . . . Self-Inflicted Damage 22 | . . . . . 22 Shots 1 | . . . . . 1 Rammed . | . . . . . . Targets Rammed . | . . . . . . Kicked . | . . . . . . Crushed . | . . . . . . Highest Temperature 237 | . 20 28 3 . 237 Average Temperature 57 | . 13 8 2 . 82 Received Heat Transfer 1092 | . . 264 9 . 819 Siege Activations . | . . . . . . Martial Activations . | . . . . . . Shielding Activations . | . . . . . . Robots Disrupted . | . . . . . . Combat Hostiles . | . . . . . . Robots Corrupted . | . . . . . . Combat Hostiles . | . . . . . . Parts Fried . | . . . . . . Impact Corruptions . | . . . . . . Robots Melted . | . . . . . . Combat Hostiles . | . . . . . . Parts Melted 1 | . . 1 . . . Heat Transferred 2093 | . 200 555 37 . 1301 Parts Sabotaged . | . . . . . . Parts Stolen . | . . . . . . Parts Stripped . | . . . . . . Power Chain Reactions 3 | . . . . . 3 Alert | -11 -10 -9 -8 -7 -7 ------- Run | Yrd Mat Mat Mat Fac Sto Maximum Alert Level 1 | . . . . . 1 Low Security (%) 99 | 100 100 100 100 100 99 Level 1 . | . . . . . . Level 2 . | . . . . . . Level 3 . | . . . . . . Level 4 . | . . . . . . Level 5 . | . . . . . . High Security . | . . . . . . Max Security . | . . . . . . Peak Influence 200 | . 70 118 35 . 200 Initial 35 | . . . 35 . . Average 51 | . 18 55 12 . 94 Influence Increases 1156 | . 140 427 . . 589 Destroy 0b10 Robot/C 700 | . 120 280 . . 300 Destroy 0b10 Robot/NC 60 | . . 15 . . 45 Destroy Leader 194 | . 20 82 . . 92 Allied During Kill 50 | . . . . . 50 Successful Hack 5 | . . 5 . . . Disable Machine 75 | . . 15 . . 60 Destroy Structure 42 | . . . . . 42 Lose Combat Pursuer 30 | . . 30 . . . Influence Decreases 1082 | . 140 341 86 . 515 Entered New Map 51 | . . . 51 . . Time Decay 705 | . 140 294 35 . 236 Lost Part 227 | . . 47 . . 180 Lost Ally 99 | . . . . . 99 Squads Dispatched 9 | . . 4 . . 5 Investigation 1 | . . 1 . . . Extermination 1 | . . . . . 1 Reinforcement 7 | . . 3 . . 4 Assault . | . . . . . . Garrison . | . . . . . . Intercept . | . . . . . . Searches Triggered . | . . . . . . Construction Impeded 2 | . . . . . 2 Haulers Reinforced 1 | . . . . . 1 Active Scanning Responses . | . . . . . . Cargo Convoy Interrupts . | . . . . . . Stealth | -11 -10 -9 -8 -7 -7 --------- Run | Yrd Mat Mat Mat Fac Sto Distress Signals 2 | . . 2 . . . Communications Jammed . | . . . . . . Distress Signals . | . . . . . . Times Spotted 57 | . 10 20 6 . 21 Peak Tracking Total 7 | . 3 5 5 . 7 Tactical Retreats 1 | . . 1 . . . Traps | -11 -10 -9 -8 -7 -7 ------- Run | Yrd Mat Mat Mat Fac Sto Traps Triggered 5 | . 1 2 . . 2 Indirectly . | . . . . . . Trap Hack Attempts . | . . . . . . Triggered . | . . . . . . Disarmed . | . . . . . . Reprogrammed . | . . . . . . Reused . | . . . . . . Traps Extracted . | . . . . . . Installed . | . . . . . . Triggered . | . . . . . . Machines | -11 -10 -9 -8 -7 -7 ---------- Run | Yrd Mat Mat Mat Fac Sto Machines Disabled 5 | . . 1 . . 4 Max in Single Turn 1 | . . 1 . . 1 Machines Repaired . | . . . . . . Machines Dismantled . | . . . . . . Machines Sabotaged . | . . . . . . Overloaded Fab Kills . | . . . . . . Hacking | -11 -10 -9 -8 -7 -7 --------- Run | Yrd Mat Mat Mat Fac Sto Machines Accessed 7 | . 1 3 1 . 2 Terminals 7 | . 1 3 1 . 2 Fabricators . | . . . . . . Repair Stations . | . . . . . . Recycling Units . | . . . . . . Scanalyzers . | . . . . . . Garrison Access . | . . . . . . Total Hacks 12 | . 1 4 3 . 4 Successful 11 | . 1 4 2 . 4 Failed 1 | . . . 1 . . Catastrophic . | . . . . . . Database Lockouts . | . . . . . . Manual . | . . . . . . Terminals 12 | . 1 4 3 . 4 Fabricators . | . . . . . . Repair Stations . | . . . . . . Recycling Units . | . . . . . . Scanalyzers . | . . . . . . Garrison Access . | . . . . . . Terminal Hacks 11 | . 1 4 2 . 4 Record 6 | . . 1 2 . 3 Alert Level 2 | . . 1 . . 1 Dispatch Records 1 | . . 1 . . . Maintenance Status 1 | . 1 . . . . Investigation Status 1 | . . 1 . . . Fabricator Hacks . | . . . . . . Repair Station Hacks . | . . . . . . Recycling Unit Hacks . | . . . . . . Scanalyzer . | . . . . . . Garrison Access Hacks . | . . . . . . Unauthorized Hacks . | . . . . . . Terminals . | . . . . . . Fabricators . | . . . . . . Repair Stations . | . . . . . . Recycling Units . | . . . . . . Scanalyzers . | . . . . . . Garrison Access . | . . . . . . Data Cores Recovered . | . . . . . . Used . | . . . . . . Hacking Detections 4 | . . 2 1 . 1 Full Trace Events . | . . . . . . Feedback Events . | . . . . . . Feedback Blocked . | . . . . . . Robot Schematics Acquired . | . . . . . . Robots Built . | . . . . . . Authchips . | . . . . . . Time . | . . . . . . Total Robot Build Rating . | . . . . . . Part Schematics Acquired . | . . . . . . Parts Built . | . . . . . . Authchips . | . . . . . . Time . | . . . . . . Total Part Build Rating . | . . . . . . Part Studies Acquired . | . . . . . . Parts Repaired . | . . . . . . Time . | . . . . . . Parts Recycled . | . . . . . . Recycled Matter . | . . . . . . Retrieved Matter . | . . . . . . Retrieved Components . | . . . . . . Parts Scanalyzed . | . . . . . . Part Schematics Acquired . | . . . . . . Parts Damaged . | . . . . . . Bothacking | -11 -10 -9 -8 -7 -7 ------------ Run | Yrd Mat Mat Mat Fac Sto Used RIF Installer . | . . . . . . Robots Hacked . | . . . . . . Non-combat . | . . . . . . Combat . | . . . . . . Robot Hacks Applied . | . . . . . . Relay Couplers Released . | . . . . . . Fabnet Peak Effective % . | . . . . . . Robots Rewired . | . . . . . . Allies Hacked . | . . . . . . Hacks Repelled . | . . . . . . Allies | -11 -10 -9 -8 -7 -7 -------- Run | Yrd Mat Mat Mat Fac Sto Total Allies 10 | . . . . . 10 Largest Group 10 | . . . . . 10 Highest-Rated Group 173 | . . . . . 173 Highest-Rated Ally 29 | . . . . . 29 Total Orders . | . . . . . . Ally Attacks 52 | . . . . . 52 Total Damage 646 | . . . . . 646 Kills 5 | . . . . . 5 Allies Corrupted 1 | . . . . . 1 Allies Melted . | . . . . . . Intel | -11 -10 -9 -8 -7 -7 ------- Run | Yrd Mat Mat Mat Fac Sto Active Infowar (turns) 1481 | . . 656 112 103 610 Structural 656 | . . 656 . . . ECM 825 | . . . 112 103 610 Robot Analysis Total . | . . . . . . Derelict Logs Recovered . | . . . . . . Drone Launches . | . . . . . . Drone Recoveries . | . . . . . . Exploration | -11 -10 -9 -8 -7 -7 ------------- Run | Yrd Mat Mat Mat Fac Sto Turns Passed 2158 | 79 469 755 129 103 623 Spaces Moved 999 | 41 252 327 92 53 234 Core 11 | 6 . . . . 5 Treads 505 | 27 252 226 . . . Legs 483 | 8 . 101 92 53 229 Wheels . | . . . . . . Hover . | . . . . . . Flight . | . . . . . . Fastest Speed 50 | 50 160 120 120 190 190 Average Speed 167 | 158 160 167 120 190 190 Slowest Speed 300 | 200 160 190 120 190 300 Overloaded Moves . | . . . . . . Propulsion Burnouts . | . . . . . . Robots Hopped . | . . . . . . Potential Cave-ins . | . . . . . . Cave-ins Triggered . | . . . . . . Exploration Rate (%) 22 | 4 40 35 14 2 42 Regions Visited 5 Branch Regions 1 Pre-discovered Areas . | . . . . . . Known Exits Taken . | . . . . . . Unknown Exits Taken 5 | 1 1 1 1 1 . Scrap Searched . | . . . . . . Spaces Dug . | . . . . . . Terrain Destroyed 49 | . . . . . 49 Melee . | . . . . . . Projectile 2 | . . . . . 2 AOE 47 | . . . . . 47 Terrain Rammed . | . . . . . . Walls Destroyed . | . . . . . . Machines Disabled . | . . . . . . Actions | -11 -10 -9 -8 -7 -7 --------- Run | Yrd Mat Mat Mat Fac Sto Total 1285 | 52 289 436 110 55 343 Wait 70 | . 4 12 3 . 51 Move 994 | 40 251 326 91 52 234 Hop . | . . . . . . Pick Up 25 | 4 7 7 5 . 2 Fast Attach 23 | 7 2 9 2 . 3 Attach 18 | . 3 6 3 2 4 Detach 4 | 1 1 1 1 . . Swap 18 | . 2 7 . 1 8 Drop 24 | . 3 13 4 . 4 Fire 104 | . 16 55 1 . 32 Melee . | . . . . . . Ram . | . . . . . . Kick . | . . . . . . Crush . | . . . . . . Escape Stasis 5 | . . . . . 5 Rewire . | . . . . . . Trap . | . . . . . . Miscellaneous . | . . . . . . Route ------- -11/Scrapyard -10/Materials -9/Materials -8/Materials -7/Factory -7/Storage History --------- Turn | Location | Event 22 | -11/Scrapyard | Discovered new exit (range 15) 80 | -11/Scrapyard | Entered Materials 309 | -10/Materials | Build established: Mutant 478 | -10/Materials | Discovered new exit (range 12) 549 | -10/Materials | Entered another Materials area 549 | -9/Materials | Evolved 2 slots: Power x1, Utility x1 983 | -9/Materials | Build established: Scavenger-Mutant 1047 | -9/Materials | Core integrity fell below 50% 1079 | -9/Materials | Lost 4 parts (3p1n) 1260 | -9/Materials | Discovered new exit (range 7) 1304 | -9/Materials | Entered another Materials area 1304 | -8/Materials | Evolved 2 slots: Propulsion x1, Utility x1 1413 | -8/Materials | Discovered new exit (range 7) 1433 | -8/Materials | Entered Factory 1433 | -7/Factory | Evolved 2 slots: Power x1, Weapon x1 1494 | -7/Factory | Discovered new exit (range 6) 1536 | -7/Factory | Entered Storage 1636 | -7/Storage | Assisted by bots powering up and referring to "LRC-V3" 1693 | -7/Storage | Lost 4 allies 1839 | -7/Storage | Lost 6 allies 2133 | -7/Storage | Core integrity fell below 50% 2153 | -7/Storage | Core integrity fell below 20% 2159 | -7/Storage | Destroyed by G-47 Trooper with Particle Gun Last Messages --------------- R-06 Scavenger collects Terrain Scanner. Acquired 29 matter. Aluminum Leg destroyed. Acquired Particle Gun. P-60 Hacker destroyed. Particle Gun destroyed. Terminal disabled. The unstable cave ceiling collapses. Acquired Imp. Heat Sink. K-01 Serf collects debris. The unstable cave ceiling collapses. ECM Suite destroyed. Acquired 25 matter. Ion Engine destroyed. K-01 Serf collects debris. Critical hit (Burn: +37). Acquired Aluminum Leg. K-01 Serf destroyed. Aluminum Leg destroyed. Acquired 24 matter. Map ----- +----------------------------------------------------+ | ?????????????????????????????????????????????????? | | ?????????????????????????????????????????????????? | | ?????????????????????????????????????????????????? | | ?????????????????????????????????????????????????? | | ?????????????????????????????????????????????????? | | ?????????????????????????????????????????????????? | | ?????????????????????????????????????????????????? | | ?????????????????????????????????????????????????? | | ?????????????????????????????????????????????????? | | ?????????????????????????????????????????????????? | | ?????????????????????????????????????????????????? | | ????????????????????????????####??? ?????????????? | | ??????????????????????????? #? ????? ???????? | | ??????????????????????????? ## ????? #?????? | | #########??????????????#""" #" ?????? #?????? | | #??????????????#""" % #??????? #?????? | | """" #??????????????# #???????# #?? ?? | | "??"" #??????????????#"" #???????# #?? ??? | | "???"" #??????????????#"" = #?????### #? ?? | | ""???" #??????????????#""%% #???? #? ""?? | | ""??" #??????????????# !*!= #???? ## """? | | """" #?????????????## #???? # """ | | #????###########u% #????#### ? | | ###+##########"""T"""### ############## [ """ | | ^ =!gYg % %% """ | | ^ =%!=@ g % """ | | * g % =# | | +###########+########## ## # " "###### %% # | | #????# #####????# """#??####* ##??? | | "" #????# ===#????###### #####??## [ #??? | | ?" #????# "===#??????????##??????## / #### | | ?" #????##T#####?????????????????### = "" # | | ?"" #?????###?????????????????????#"" % """# | | ??" #?????????????????????????????#"T T"# | | """ #?????????????????????????????#"" %= """# | | #?????????????????????????????### * ! "" # | | ######???????????????????#######????##%% [=%! #### | | ?????????????????????????# #????# ! !%=!= #?? | | ?????????????????????????# #????## ##! #####?? | | ?????????????????????????#T #?????####%##?????? | | ?????#####???????????????## ##?????####!##?????? | | ######"T"####################/########"% #?????? | | %%%%=% % #?????? | | *#######""= #?????? | | #?????###""##?????? | | ################################???????####??????? | | ?????????????????????????????????????????????????? | | ?????????????????????????????????????????????????? | | ?????????????????????????????????????????????????? | | ?????????????????????????????????????????????????? | +----------------------------------------------------+ Best States ------------- Heat Dissipation 70 Energy Generation 22 Energy Capacity 715 Matter Stores 300 Matter Capacity 300 Sight Range 16 Terrain Scan Density 10 ECM Strength 1 Evasion (%) 55 Recoil Reduction 2 Item Schematics ----------------- None Robot Schematics ------------------ None Fabricated ------------ Nothing Repaired ---------- Nothing Studied --------- None Alien Tech Used ----------------- None Achievements -------------- None Challenges ------------ None Game ------ Seed ShockAngularArticulator Manual? 0 Play Time 00:43:03 Cumulative 12.6 hours Start 2026.03.03 @ 21:45:52 End 2026.03.04 @ 19:51:22 Sessions 2 Manual Loads 0 Difficulty Rogue Special Mode None Game No. 13 Rogue 13 Adventurer 0 Explorer 0 Win Type - Total 0 Types 0/0/0/0/0/0/0/0/0/0 Lore% 8 Gallery% 13 Achievement% 12 Wizard Run 0 Options --------- Layout 1 ASCII 0 Keyboard 0 Movement Mouse Keybinds 0 Fullscreen 1 Font 32/Tamsyn Map View 25x20 Zoom Use 90% Tactical HUD 0 Map Filters NONE Filters LOW_CONTRAST(13,24,33) Steam 1 RUN: 4e118672-599a-4df7-9022-ea41aeca4db2